{"text_format":"3","workbook":"xlsx","n_sheets":1,"sheets":["page 1"],"read":"whole","date_system":"1900"}

{"sheet":"page 1","index":0,"n_rows":81,"n_cols":4,"rows_kept":81,"merged":[[0,0,0,4],[1,4,28,4],[29,0,29,4],[30,0,30,4],[31,4,56,4],[57,0,57,4],[58,0,58,4],[59,0,59,4],[60,4,78,4],[79,0,79,4]]}
["Voice Transition Plan Part 1"]
["ID","Task Name","Duration in days","Resource Names"]
[1,"Initiation Phase",3]
[{"$f":"SUM(A3+1)","v":2},"Assign Project Manager",1,"Programme Manager"]
[{"$f":"SUM(A4+1)","v":3},"Appoint Project Team",1,"Project Manager"]
[4,"Project Manager Assignment",1,"Programme Manager"]
[5,"Planning Phase",2]
[6,"Scoping session (External)",1,"All Stakeholders"]
[7,"Create Project Plan",2,"Project Manager"]
[8,"Create Scope of Work",2,"Project Manager"]
[9,"Procurement  of Devices",2]
[10,"Ordering devices",1,"Project Manager"]
[11,"Execution Phase",2]
[12,"9 Sites Fiber Link (using existing Infrastructure)",5]
[13,"9 Sites Secondary Link",5]
[14,"Planning and Scoping",1,"Project Manager"]
[15,"Conduct site survey",5,"Transmission"]
[16,"Request Landlord Approval",1,"Customer"]
[17,"Obtain quote",1,"Transmission"]
[18,"Raise PO",2,"Project Manager"]
[{"$f":"SUM(A20+1)","v":19},"Prepare Microwave Installation",3,"Transmission"]
[20,"Microwave Installation",2,"Transmission"]
[21,"CE Device Management",2,"Transmission"]
[22,"Link Activation (Layer 3)",1,"Transmission"]
[23,"Soaking",2,"Transmission"]
[24,"Handover the link",1,"Project Manager,Customer"]
[25,"Cutover the link",1,"Project Manager,Customer"]
[26,"Number Porting",2]
[27,"Request Port Approval from Vodacom",2,"Administrators"]
["Page 1"]
["Voice Transition Plan Part 2"]
["ID","Task Name","Duration","Resource Names"]
[28,"Port Approved and order captured on system",1,"Administrators"]
[{"$f":"SUM(A33+1)","v":29},"Configure / Setup numbers on Broadsoft",2,"Successful Bidder Engineer"]
[{"$f":"SUM(A34+1)","v":30},"Schedule Porting of Numbers",5,"Project Manager"]
[31,"Actual Number Porting",1,"Project Manager"]
[32,"Customer setup and Testing",1,"Project Manager,ONB Analyst"]
[33,"ONB CSOC Sign-off",1,"Successful Bidder Engineer"]
[34,"Activate IP Talk Numbers and Build SIP Trunk",5,"Successful Bidder Engineer"]
[35,"Provision  ONB Licences on ESM",5,"Successful Bidder Engineer"]
[36,"Setup Customer Licences and Features",5,"ONB Analyst"]
[37,"Install Devices and Train Administrators",5,"Successful Bidder Engineer"]
[38,"TMS",5]
[39,"TMS Licences Allocation",5,"Project Manager"]
[40,"TMS Training",5,"Project Manager"]
[41,"Hosted Call Centre",5]
[42,"Infrastructure Build",5]
[43,"Server configuration",1,"Successful Bidder Engineer"]
[{"$f":"SUM(A48+1)","v":44},"VLAN+DMZ+Firewall",1,"Successful Bidder Engineer"]
[45,"VPN Configand Routing from site to servers",1,"Successful Bidder Engineer"]
[46,"Port Tagging",1,"Successful Bidder Engineer"]
[47,"Presence License Request",4,"Successful Bidder Engineer"]
[48,"SIP Trunk",1,"Successful Bidder Engineer"]
[49,"Configuration",1,"Successful Bidder Engineer"]
[50,"Presence configuration",2,"Successful Bidder Engineer"]
[51,"Configure Auto-Attendent",1,"Successful Bidder Engineer"]
[52,"DeployAgentsoftware",3,"Successful Bidder Engineer"]
[]
["Page 2"]
["Voice Transition Plan Part 3"]
["ID","Task Name","Duration","Resource Names"]
[53,"Testing",1]
[{"$f":"SUM(A62+1)","v":54},"Testing the solution",1,"Successful Bidder Engineer"]
[{"$f":"SUM(A63+1)","v":55},"Training",5,"Successful Bidder Engineer"]
[56,"Training the Agents",2,"Successful Bidder Engineer"]
[57,"Training the Admin",2,"Successful Bidder Engineer"]
[58,"Training the supervisor",2,"Successful Bidder Engineer"]
[59,"Project Closure",5]
[60,"Confirm Project Completion",1,"Project Manager"]
[61,"Identify and Complete closure actions",1,"Project Manager"]
[62,"Identify Lessons learnt",1,"Project Manager,Customer"]
[63,"Ensure Project activity closure ",1,"Project Manager"]
[{"$f":"SUM(A72+1)","v":64},"Sign off Project",1,"Project Manager"]
[65,"Project Risks",0]
[66,"Landlord approval",0]
[67,"Mast approval",0]
[68,"Health and Safety",0]
[69,"Backhaul Connectivity to remote sites",0]
[70,"Lead times are based on new  builds and existing infrustructure",0]
["Page 3"]
[null,null,{"$f":"SUM(C3:C29,C33:C57,C62:C79)","v":149}]